[Event "NOR-chT Eliteserien 2018-19"]
[Site "Norway"]
[Date "2019.01.12"]
[Round "5"]
[White "Lindbol, Aleksander"]
[Black "Moen, Ole Christian"]
[Result "1-0"]
[ECO "A26"]
[WhiteElo "2204"]
[BlackElo "2241"]
[Annotator "NA"]
[PlyCount "111"]
[EventDate "2018.11.02"]
[EventType "team-tourn"]
[EventCountry "NOR"]
[SourceTitle "playchess.com"]
[Source "ChessBase"]
[SourceQuality "1"]
[TimeControl "40/5400+30:1800+30"]

1. c4 {[%emt 0:00:00]} e5 {[%emt 0:04:21]} 2. g3 {[%emt 0:00:25]} g6 {[%emt 0:00:40]} 3. Bg2 {[%emt 0:02:00]} Bg7 {[%emt 0:01:05]} 4. Nc3 {[%emt 0:00:19]} d6 {[%emt 0:00:12]} 5. Nf3 {[%emt 0:03:57]} Nc6 {[%emt 0:01:38]} 6. d3 {[%emt 0:00:57]} f5 {[%emt 0:00:08]} 7. O-O {[%emt 0:05:45]} Nf6 {[%emt 0:00:31]} 8. Rb1 {[%emt 0:02:53]} a5 {[%emt 0:01:38]} 9. a3 {[%emt 0:03:59]} O-O {[%emt 0:02:48]} 10. b4 {[%emt 0:02:23]} axb4 {[%emt 0:00:26]} 11. axb4 {[%emt 0:00:08]} h6 {[%emt 0:03:03]} 12. Qc2 {[%emt 0:16:26]} g5 {[%emt 0:05:37]} 13. b5 {[%emt 0:06:25]} Ne7 {[%emt 0:08:26]} 14. Bb2 {[%emt 0:03:17]} Be6 {[%emt 0:07:16]} 15. Ra1 {[%emt 0:02:02]} Qd7 {[%emt 0:00:26]} 16. Rxa8 {[%emt 0:03:51]} Rxa8 {[%emt 0:00:23]} 17. Ra1 {[%emt 0:00:37]} Rxa1+ {[%emt 0:03:15]} 18. Bxa1 {[%emt 0:00:06]} c6 {[%emt 0:05:45]} 19. Qa4 {[%emt 0:10:43]} Kh7 {[%emt 0:06:19]} 20. c5 {[%emt 0:13:11]} g4 {[%emt 0:00:32]} 21. Nd2 {[%emt 0:04:11]} dxc5 {[%emt 0:09:24]} 22. Nc4 {[%emt 0:00:34]} Nfd5 {[%emt 0:06:48]} 23. bxc6 {[%emt 0:08:10]} Nxc6 {[%emt 0:00:40]} 24. Bxd5 {[%emt 0:00:50]} Bxd5 {[%emt 0:00:20]} 25. Nb6 {[%emt 0:00:15]} Qd8 {[%emt 0:02:58]} 26. Ncxd5 {[%emt 0:00:34]} Nb4 {[%emt 0:00:07]} 27. Nxb4 {[%emt 0:04:21]} Qxb6 {[%emt 0:00:10]} 28. Qd7 {[%emt 0:00:30]} cxb4 {[%emt 0:06:38]} 29. Bxe5 {[%emt 0:00:17]} Qg6 {[%emt 0:01:04]} 30. Qxb7 {[%emt 0:00:17]} h5 {[%emt 0:03:25]} 31. Kf1 {[%emt 0:01:58]} Kh6 {[%emt 0:03:34]} 32. Qxg7+ {[%emt 0:00:37]} Qxg7 {[%emt 0:00:05]} 33. Bxg7+ {[%emt 0:00:05]} Kxg7 {[%emt 0:00:05]} 34. Ke1 {[%emt 0:00:04]} Kf6 {[%emt 0:00:37]} 35. e3 {[%emt 0:01:12]} Ke5 {[%emt 0:00:11]} 36. Kd2 {[%emt 0:00:07]} Kd5 {[%emt 0:00:15]} 37. Kc2 {[%emt 0:02:27]} Kc5 {[%emt 0:00:08]} 38. Kb2 {[%emt 0:01:52]} Kb5 {[%emt 0:00:28]} 39. Kb3 {[%emt 0:00:17]} Ka5 {[%emt 0:00:05]} 40. e4 {[%emt 0:00:51]} fxe4 {[%emt 0:00:29]} 41. dxe4 {[%emt 0:30:04]} Kb5 {[%emt 0:30:07]} 42. e5 {[%emt 0:00:14]} Kc5 {[%emt 0:00:05]} 43. e6 {[%emt 0:00:11]} Kd6 {[%emt 0:00:04]} 44. Kxb4 {[%emt 0:00:09]} Kxe6 {[%emt 0:00:03]} 45. Kc4 {[%emt 0:00:05]} Ke5 {[%emt 0:01:02]} 46. Kd3 {[%emt 0:00:10]} Kd5 {[%emt 0:01:08]} 47. Ke3 {[%emt 0:00:07]} Ke5 {[%emt 0:00:05]} 48. f4+ {[%emt 0:00:43]} gxf3 {[%emt 0:00:07]} 49. Kxf3 {[%emt 0:00:07]} Kf5 {[%emt 0:00:06]} 50. h3 {[%emt 0:01:30]} Ke5 {[%emt 0:00:21]} 51. Ke3 {[%emt 0:01:01]} Kf5 {[%emt 0:00:11]} 52. Kd4 {[%emt 0:00:26]} Ke6 {[%emt 0:03:57]} 53. Ke4 {[%emt 0:00:00]} Kf6 {[%emt 0:00:00]} 54. Kf4 {[%emt 0:00:00]} Kg6 {[%emt 0:00:00]} 55. Ke5 {[%emt 0:00:00]} Kg5 {[%emt 0:00:00]} 56. h4+ {[%emt 0:00:00]} 1-0

[Event "NOR-chT Eliteserien 2018-19"]
[Site "Norway"]
[Date "2019.01.12"]
[Round "5"]
[White "Mihajlov, Svetoslav"]
[Black "Rygg, Andreas Gangstad"]
[Result "1-0"]
[ECO "A29"]
[WhiteElo "2147"]
[BlackElo "1869"]
[Annotator "NA"]
[PlyCount "115"]
[EventDate "2018.11.02"]
[EventType "team-tourn"]
[EventCountry "NOR"]
[SourceTitle "playchess.com"]
[Source "ChessBase"]
[SourceQuality "1"]
[TimeControl "40/5400+30:1800+30"]

1. c4 {[%emt 0:00:00]} e5 {[%emt 0:00:12]} 2. Nc3 {[%emt 0:00:00]} Nf6 {[%emt 0:00:30]} 3. g3 {[%emt 0:00:00]} g6 {[%emt 0:00:56]} 4. Bg2 {[%emt 0:00:40]} Bg7 {[%emt 0:01:57]} 5. Nf3 {[%emt 0:02:21]} Nc6 {[%emt 0:10:41]} 6. d4 {[%emt 0:02:52]} exd4 {[%emt 0:01:11]} 7. Nxd4 {[%emt 0:00:05]} O-O {[%emt 0:01:34]} 8. O-O {[%emt 0:00:12]} Rb8 {[%emt 0:04:54]} 9. Nc2 {[%emt 0:03:52]} d6 {[%emt 0:01:59]} 10. h3 {[%emt 0:00:48]} Be6 {[%emt 0:01:32]} 11. Ne3 {[%emt 0:10:51]} Qd7 {[%emt 0:03:45]} 12. Kh2 {[%emt 0:00:08]} Rfe8 {[%emt 0:04:16]} 13. Bd2 {[%emt 0:01:56]} a6 {[%emt 0:04:52]} 14. Rc1 {[%emt 0:05:16]} Ne7 {[%emt 0:10:41]} 15. Ncd5 {[%emt 0:06:33]} c6 {[%emt 0:04:56]} 16. Nxf6+ {[%emt 0:07:18]} Bxf6 {[%emt 0:00:08]} 17. Bc3 {[%emt 0:00:18]} Bxc3 {[%emt 0:05:02]} 18. Rxc3 {[%emt 0:00:08]} Qc7 {[%emt 0:05:54]} 19. Qd2 {[%emt 0:02:21]} Rbd8 {[%emt 0:03:28]} 20. Rd1 {[%emt 0:00:10]} Qa5 {[%emt 0:07:24]} 21. a3 {[%emt 0:03:32]} d5 {[%emt 0:03:01]} 22. Rd3 {[%emt 0:00:17]} Qxd2 {[%emt 0:03:35]} 23. R3xd2 {[%emt 0:02:43]} Nf5 {[%emt 0:01:01]} 24. Nxf5 {[%emt 0:00:12]} Bxf5 {[%emt 0:00:04]} 25. e3 {[%emt 0:00:16]} Rc8 {[%emt 0:03:39]} 26. cxd5 {[%emt 0:00:08]} cxd5 {[%emt 0:00:05]} 27. Bxd5 {[%emt 0:00:47]} Be4 {[%emt 0:01:15]} 28. Bxe4 {[%emt 0:00:16]} Rxe4 {[%emt 0:00:06]} 29. Rd8+ {[%emt 0:00:08]} Rxd8 {[%emt 0:01:28]} 30. Rxd8+ {[%emt 0:00:07]} Kg7 {[%emt 0:00:01]} 31. Rd7 {[%emt 0:00:15]} b5 {[%emt 0:00:49]} 32. Rd6 {[%emt 0:00:16]} Rc4 {[%emt 0:01:27]} 33. Kg2 {[%emt 0:00:05]} Rc2 {[%emt 0:11:32]} 34. b4 {[%emt 0:00:08]} a5 {[%emt 0:00:35]} 35. bxa5 {[%emt 0:01:20]} Rc3 {[%emt 0:00:05]} 36. Rb6 {[%emt 0:00:11]} Rxa3 {[%emt 0:00:26]} 37. Rxb5 {[%emt 0:00:08]} h5 {[%emt 0:01:37]} 38. g4 {[%emt 0:00:25]} hxg4 {[%emt 0:00:36]} 39. hxg4 {[%emt 0:00:06]} Ra4 {[%emt 0:00:27]} 40. f4 {[%emt 0:00:28]} Ra3 {[%emt 0:00:52]} 41. Kf3 {[%emt 0:30:08]} Ra4 {[%emt 0:03:35]} 42. g5 {[%emt 0:00:00]} Kh7 {[%emt 0:03:17]} 43. Re5 {[%emt 0:00:00]} Kg7 {[%emt 0:03:44]} 44. Ke2 {[%emt 0:00:00]} f6 {[%emt 0:04:14]} 45. Re7+ {[%emt 0:00:00]} Kf8 {[%emt 0:00:17]} 46. gxf6 {[%emt 0:00:00]} Rxa5 {[%emt 0:00:08]} 47. Rg7 {[%emt 0:00:00]} Rf5 {[%emt 0:01:48]} 48. Rxg6 {[%emt 0:00:00]} Rh5 {[%emt 0:00:04]} 49. Rg7 {[%emt 0:00:00]} Rh6 {[%emt 0:00:24]} 50. Kf3 {[%emt 0:00:00]} Rxf6 {[%emt 0:00:06]} 51. Ra7 {[%emt 0:00:00]} Rb6 {[%emt 0:01:14]} 52. f5 {[%emt 0:00:00]} Rb4 {[%emt 0:02:37]} 53. e4 {[%emt 0:00:00]} Rb5 {[%emt 0:00:13]} 54. Kf4 {[%emt 0:00:00]} Rc5 {[%emt 0:00:51]} 55. e5 {[%emt 0:00:00]} Rb5 {[%emt 0:00:46]} 56. e6 {[%emt 0:00:00]} Rc5 {[%emt 0:00:46]} 57. Kg5 {[%emt 0:00:00]} Rc6 {[%emt 0:05:50]} 58. Kg6 {[%emt 0:00:00]} 1-0

[Event "NOR-chT Eliteserien 2018-19"]
[Site "Norway"]
[Date "2019.01.12"]
[Round "5"]
[White "Lahlum, Hans Olav"]
[Black "Mikalsen, Harald"]
[Result "0-1"]
[ECO "E38"]
[WhiteElo "2122"]
[BlackElo "2006"]
[Annotator "NA"]
[PlyCount "118"]
[EventDate "2018.11.02"]
[EventType "team-tourn"]
[EventCountry "NOR"]
[SourceTitle "playchess.com"]
[Source "ChessBase"]
[SourceQuality "1"]
[TimeControl "40/5400+30:1800+30"]

1. d4 {[%emt 0:00:00]} Nf6 {[%emt 0:00:00]} 2. c4 {[%emt 0:00:00]} e6 {[%emt 0:00:00]} 3. Nc3 {[%emt 0:00:00]} Bb4 {[%emt 0:01:00]} 4. Qc2 {[%emt 0:00:00]} c5 {[%emt 0:04:00]} 5. dxc5 {[%emt 0:00:00]} Qa5 {[%emt 0:03:57]} 6. Bd2 {[%emt 0:00:28]} Nc6 {[%emt 0:01:11]} 7. e3 {[%emt 0:03:30]} Qxc5 {[%emt 0:10:04]} 8. a3 {[%emt 0:03:15]} Bxc3 {[%emt 0:02:52]} 9. Bxc3 {[%emt 0:00:16]} a5 {[%emt 0:00:20]} 10. b3 {[%emt 0:03:51]} b6 {[%emt 0:01:38]} 11. Nf3 {[%emt 0:02:32]} Ba6 {[%emt 0:09:45]} 12. Qb2 {[%emt 0:08:25]} Qe7 {[%emt 0:18:22]} 13. b4 {[%emt 0:13:30]} Bc8 {[%emt 0:04:48]} 14. Rb1 {[%emt 0:06:39]} O-O {[%emt 0:04:08]} 15. Bd3 {[%emt 0:01:25]} d6 {[%emt 0:05:42]} 16. O-O {[%emt 0:04:32]} e5 {[%emt 0:07:28]} 17. Nd2 {[%emt 0:04:14]} Ng4 {[%emt 0:04:16]} 18. Be4 {[%emt 0:07:51]} axb4 {[%emt 0:05:12]} 19. axb4 {[%emt 0:01:19]} Bb7 {[%emt 0:01:21]} 20. Ra1 {[%emt 0:04:54]} Qc7 {[%emt 0:06:17]} 21. Bf3 {[%emt 0:04:47]} Nh6 {[%emt 0:01:03]} 22. Rxa8 {[%emt 0:01:36]} Rxa8 {[%emt 0:00:12]} 23. Rd1 {[%emt 0:00:11]} Ne7 {[%emt 0:02:18]} 24. Bxb7 {[%emt 0:11:34]} Qxb7 {[%emt 0:00:07]} 25. Nf3 {[%emt 0:00:12]} Qc7 {[%emt 0:01:16]} 26. h3 {[%emt 0:05:39]} f6 {[%emt 0:00:17]} 27. Qb3 {[%emt 0:00:35]} Nf7 {[%emt 0:00:09]} 28. Nd2 {[%emt 0:00:55]} Rc8 {[%emt 0:00:50]} 29. Bb2 {[%emt 0:00:36]} g6 {[%emt 0:00:39]} 30. b5 {[%emt 0:00:26]} Kg7 {[%emt 0:00:47]} 31. Ba3 {[%emt 0:01:00]} Nf5 {[%emt 0:00:20]} 32. Rc1 {[%emt 0:03:21]} Qb7 {[%emt 0:00:23]} 33. Qd3 {[%emt 0:00:25]} Rd8 {[%emt 0:01:23]} 34. Qb3 {[%emt 0:03:16]} Ng5 {[%emt 0:01:01]} 35. Qc3 {[%emt 0:01:33]} Nh4 {[%emt 0:00:40]} 36. f3 {[%emt 0:00:34]} Nf5 {[%emt 0:00:45]} 37. Kf2 {[%emt 0:01:13]} h5 {[%emt 0:01:00]} 38. Nf1 {[%emt 0:01:20]} Ne6 {[%emt 0:01:45]} 39. Nd2 {[%emt 0:01:51]} Ng5 {[%emt 0:00:20]} 40. Nf1 {[%emt 0:00:26]} h4 {[%emt 0:01:08]} 41. Nd2 {[%emt 0:03:47]} d5 {[%emt 0:07:09]} 42. c5 {[%emt 0:04:10]} d4 {[%emt 0:02:01]} 43. exd4 {[%emt 0:00:39]} exd4 {[%emt 0:00:06]} 44. Qb4 {[%emt 0:06:07]} Qe7 {[%emt 0:06:57]} 45. Re1 {[%emt 0:04:02]} Qe3+ {[%emt 0:02:52]} 46. Rxe3 {[%emt 0:01:08]} dxe3+ {[%emt 0:00:08]} 47. Ke1 {[%emt 0:03:52]} exd2+ {[%emt 0:00:20]} 48. Qxd2 {[%emt 0:00:16]} Rxd2 {[%emt 0:00:08]} 49. Kxd2 {[%emt 0:00:17]} bxc5 {[%emt 0:03:48]} 50. b6 {[%emt 0:02:15]} Nd6 {[%emt 0:00:57]} 51. Bxc5 {[%emt 0:00:34]} Nge4+ {[%emt 0:01:31]} 52. fxe4 {[%emt 0:00:07]} Nxe4+ {[%emt 0:00:01]} 53. Ke3 {[%emt 0:00:28]} Nxc5 {[%emt 0:00:08]} 54. Kd4 {[%emt 0:00:07]} Nd7 {[%emt 0:02:00]} 55. b7 {[%emt 0:00:05]} Kf7 {[%emt 0:00:11]} 56. Kd5 {[%emt 0:00:13]} Ke7 {[%emt 0:00:14]} 57. Kc6 {[%emt 0:00:07]} Ke6 {[%emt 0:00:35]} 58. Kc7 {[%emt 0:00:20]} g5 {[%emt 0:00:14]} 59. Kc6 {[%emt 0:00:17]} f5 {[%emt 0:00:12]} 0-1

[Event "NOR-chT Eliteserien 2018-19"]
[Site "Norway"]
[Date "2019.01.12"]
[Round "5"]
[White "Soderstrom, Adrian"]
[Black "Hammerstad, Asmund"]
[Result "0-1"]
[ECO "A21"]
[WhiteElo "2118"]
[BlackElo "2205"]
[Annotator "NA"]
[PlyCount "80"]
[EventDate "2018.11.02"]
[EventType "team-tourn"]
[EventCountry "NOR"]
[SourceTitle "playchess.com"]
[Source "ChessBase"]
[SourceQuality "1"]
[TimeControl "40/5400+30:1800+30"]

1. c4 {[%emt 0:00:00]} f5 {[%emt 0:00:00]} 2. g3 {[%emt 0:00:00]} Nf6 {[%emt 0:00:56]} 3. Bg2 {[%emt 0:00:01]} e5 {[%emt 0:01:19]} 4. Nc3 {[%emt 0:02:14]} Be7 {[%emt 0:01:19]} 5. e3 {[%emt 0:00:32]} O-O {[%emt 0:00:25]} 6. Nge2 {[%emt 0:00:20]} d6 {[%emt 0:01:34]} 7. d3 {[%emt 0:00:57]} c6 {[%emt 0:00:27]} 8. f4 {[%emt 0:04:59]} Be6 {[%emt 0:00:49]} 9. b3 {[%emt 0:11:16]} Nbd7 {[%emt 0:01:07]} 10. d4 {[%emt 0:02:20]} e4 {[%emt 0:01:31]} 11. Bd2 {[%emt 0:13:45]} a5 {[%emt 0:07:26]} 12. Rc1 {[%emt 0:08:33]} Qb8 {[%emt 0:07:21]} 13. O-O {[%emt 0:07:36]} g6 {[%emt 0:02:19]} 14. Qc2 {[%emt 0:07:09]} Rc8 {[%emt 0:01:16]} 15. a3 {[%emt 0:03:49]} b5 {[%emt 0:01:57]} 16. d5 {[%emt 0:03:14]} cxd5 {[%emt 0:00:40]} 17. cxb5 {[%emt 0:01:43]} Nc5 {[%emt 0:05:42]} 18. Nd4 {[%emt 0:01:59]} Bd7 {[%emt 0:02:07]} 19. Rfd1 {[%emt 0:03:04]} Ne6 {[%emt 0:05:42]} 20. Nxe6 {[%emt 0:02:34]} Bxe6 {[%emt 0:00:09]} 21. Qb2 {[%emt 0:01:28]} Nd7 {[%emt 0:00:33]} 22. Bf1 {[%emt 0:04:51]} Bf6 {[%emt 0:03:51]} 23. Be1 {[%emt 0:01:43]} Qa7 {[%emt 0:08:14]} 24. Qd2 {[%emt 0:02:08]} d4 {[%emt 0:00:36]} 25. exd4 {[%emt 0:03:12]} Bxb3 {[%emt 0:00:44]} 26. b6 {[%emt 0:01:01]} Nxb6 {[%emt 0:08:32]} 27. Nb5 {[%emt 0:00:20]} Qd7 {[%emt 0:00:48]} 28. Rxc8+ {[%emt 0:00:40]} Rxc8 {[%emt 0:00:31]} 29. Rb1 {[%emt 0:00:39]} a4 {[%emt 0:02:52]} 30. Qb4 {[%emt 0:00:36]} d5 {[%emt 0:01:11]} 31. Bc3 {[%emt 0:01:36]} Nc4 {[%emt 0:02:10]} 32. Rxb3 {[%emt 0:02:37]} axb3 {[%emt 0:00:14]} 33. Qxb3 {[%emt 0:00:05]} g5 {[%emt 0:05:03]} 34. Be1 {[%emt 0:02:54]} Kh8 {[%emt 0:01:56]} 35. Kh1 {[%emt 0:01:00]} gxf4 {[%emt 0:04:32]} 36. gxf4 {[%emt 0:00:04]} e3 {[%emt 0:02:37]} 37. a4 {[%emt 0:02:29]} Qe6 {[%emt 0:08:00]} 38. Bg2 {[%emt 0:03:13]} Nd2 {[%emt 0:04:19]} 39. Qb2 {[%emt 0:01:35]} Qc6 {[%emt 0:01:27]} 40. Bxd2 {[%emt 0:01:11]} exd2 {[%emt 0:00:11]} 0-1

[Event "NOR-chT Eliteserien 2018-19"]
[Site "Norway"]
[Date "2019.01.12"]
[Round "5"]
[White "Machlik, Edit"]
[Black "Lie, Kjetil A."]
[Result "0-1"]
[ECO "A21"]
[WhiteElo "2112"]
[BlackElo "2539"]
[Annotator "ChessBase"]
[PlyCount "108"]
[EventDate "2018.11.02"]
[EventType "team-tourn"]
[EventCountry "NOR"]
[SourceTitle "playchess.com"]
[Source "ChessBase"]
[SourceQuality "1"]
[TimeControl "40/5400+30:1800+30"]

1. d4 {[%emt 0:00:00]} d6 {[%emt 0:00:08]} 2. c4 {[%emt 0:00:00]} e5 {[%emt 0:00:27]} 3. Nf3 {[%emt 0:00:03]} e4 {[%emt 0:00:22]} 4. Ng5 {[%emt 0:00:07]} f5 {[%emt 0:00:27]} 5. Nc3 {[%emt 0:00:54]} Be7 {[%emt 0:00:41]} 6. Nh3 {[%emt 0:00:09]} Nf6 {[%emt 0:01:34]} 7. g3 {[%emt 0:00:37]} c6 {[%emt 0:00:25]} 8. d5 {[%emt 0:01:08]} Nbd7 {[%emt 0:00:50]} 9. Bg2 {[%emt 0:01:39]} Nb6 {[%emt 0:00:25]} 10. Qb3 {[%emt 0:01:06]} Nfd7 {[%emt 0:02:20]} 11. O-O {[%emt 0:05:13]} Ne5 {[%emt 0:06:53]} 12. f3 {[%emt 0:01:41]} exf3 {[%emt 0:01:24]} 13. exf3 {[%emt 0:00:06]} Nexc4 {[%emt 0:19:37]} 14. Re1 {[%emt 0:02:31]} O-O {[%emt 0:12:18]} 15. Bf1 {[%emt 0:04:26]} Na5 {[%emt 0:19:58]} 16. Qb4 {[%emt 0:01:56]} Nxd5 {[%emt 0:00:10]} 17. Nxd5 {[%emt 0:00:28]} cxd5 {[%emt 0:00:04]} 18. Nf4 {[%emt 0:02:49]} Nc6 {[%emt 0:01:20]} 19. Qb3 {[%emt 0:00:07]} Kh8 {[%emt 0:00:52]} 20. Nxd5 {[%emt 0:05:29]} Bf6 {[%emt 0:02:24]} 21. Nxf6 {[%emt 0:22:26]} Qxf6 {[%emt 0:00:07]} 22. Bf4 {[%emt 0:00:55]} Ne5 {[%emt 0:04:10]} 23. Rad1 {[%emt 0:04:32]} Be6 {[%emt 0:05:40]} 24. Qe3 {[%emt 0:07:46]} Bf7 {[%emt 0:05:19]} 25. b3 {[%emt 0:14:46]} Rfe8 {[%emt 0:02:23]} 26. Bg2 {[%emt 0:04:19]} Bh5 {[%emt 0:06:10]} 27. Qf2 {[%emt 0:02:42]} Re6 {[%emt 0:00:24]} 28. Rxd6 {[%emt 0:07:24]} Rxd6 {[%emt 0:01:02]} 29. Bxe5 {[%emt 0:00:09]} Qg6 {[%emt 0:01:05]} 30. Bxd6 {[%emt 0:00:06]} Qxd6 {[%emt 0:00:04]} 31. f4 {[%emt 0:04:04]} Qb4 {[%emt 0:00:11]} 32. Qe3 {[%emt 0:02:52]} h6 {[%emt 0:00:23]} 33. Rc1 {[%emt 0:01:44]} Re8 {[%emt 0:00:38]} 34. Qc3 {[%emt 0:01:20]} Qb6+ {[%emt 0:01:03]} 35. Kh1 {[%emt 0:00:03]} Qf2 {[%emt 0:00:49]} 36. a4 {[%emt 0:01:45]} Re2 {[%emt 0:00:40]} 37. Rg1 {[%emt 0:00:20]} Kh7 {[%emt 0:02:06]} 38. a5 {[%emt 0:00:43]} Bg4 {[%emt 0:01:25]} 39. b4 {[%emt 0:00:31]} b6 {[%emt 0:01:35]} 40. axb6 {[%emt 0:00:28]} axb6 {[%emt 0:00:10]} 41. b5 {[%emt 0:08:58]} Rb2 {[%emt 0:08:09]} 42. Qd3 {[%emt 0:01:45]} Bh3 {[%emt 0:04:59]} 43. Qd5 {[%emt 0:06:00]} Qc2 {[%emt 0:03:25]} 44. Qc6 {[%emt 0:03:35]} Qe2 {[%emt 0:00:17]} 45. Qb7 {[%emt 0:01:53]} Bxg2+ {[%emt 0:00:53]} 46. Rxg2 {[%emt 0:01:16]} Qxb5 {[%emt 0:00:20]} 47. Qf3 {[%emt 0:02:57]} Rb3 {[%emt 0:00:32]} 48. Qb7 {[%emt 0:02:17]} Rb1+ {[%emt 0:00:22]} 49. Rg1 {[%emt 0:00:07]} Rb2 {[%emt 0:00:49]} 50. Qf3 {[%emt 0:00:34]} Qc4 {[%emt 0:01:24]} 51. g4 {[%emt 0:02:33]} Qc2 {[%emt 0:00:11]} 52. Rg2 {[%emt 0:00:59]} Qxg2+ {[%emt 0:00:09]} 53. Qxg2 {[%emt 0:00:05]} Rb1+ {[%emt 0:00:15]} 54. Qg1 {[%emt 0:00:06]} Rxg1+ {[%emt 0:00:05]} 0-1

[Event "NOR-chT Eliteserien 2018-19"]
[Site "Norway"]
[Date "2019.01.13"]
[Round "6"]
[White "Kaasen, Tor Fredrik"]
[Black "Liabotro, Ola"]
[Result "1-0"]
[ECO "A37"]
[WhiteElo "2409"]
[BlackElo "2075"]
[Annotator "NA"]
[PlyCount "61"]
[EventDate "2018.11.02"]
[EventType "team-tourn"]
[EventCountry "NOR"]
[SourceTitle "playchess.com"]
[Source "ChessBase"]
[SourceQuality "1"]
[TimeControl "40/5400+30:1800+30"]

1. c4 {[%emt 0:03:33]} c5 {[%emt 0:00:31]} 2. g3 {[%emt 0:00:24]} g6 {[%emt 0:01:28]} 3. Bg2 {[%emt 0:00:22]} Bg7 {[%emt 0:00:06]} 4. Nf3 {[%emt 0:00:21]} Nc6 {[%emt 0:01:04]} 5. O-O {[%emt 0:00:22]} e5 {[%emt 0:01:38]} 6. Nc3 {[%emt 0:01:05]} Nge7 {[%emt 0:00:21]} 7. d3 {[%emt 0:01:28]} O-O {[%emt 0:00:34]} 8. Bd2 {[%emt 0:02:28]} d6 {[%emt 0:01:25]} 9. Qc1 {[%emt 0:01:03]} a6 {[%emt 0:10:44]} 10. a3 {[%emt 0:07:42]} Rb8 {[%emt 0:02:28]} 11. Rb1 {[%emt 0:00:30]} Bg4 {[%emt 0:16:35]} 12. Re1 {[%emt 0:05:59]} b5 {[%emt 0:04:56]} 13. cxb5 {[%emt 0:01:03]} axb5 {[%emt 0:00:09]} 14. b4 {[%emt 0:00:06]} c4 {[%emt 0:05:38]} 15. dxc4 {[%emt 0:03:02]} bxc4 {[%emt 0:00:08]} 16. Bh6 {[%emt 0:00:26]} Bxf3 {[%emt 0:05:22]} 17. exf3 {[%emt 0:00:45]} Nd4 {[%emt 0:00:24]} 18. Bxg7 {[%emt 0:00:58]} Kxg7 {[%emt 0:00:06]} 19. f4 {[%emt 0:00:11]} Nb3 {[%emt 0:05:49]} 20. Qb2 {[%emt 0:00:51]} f6 {[%emt 0:04:47]} 21. Rbd1 {[%emt 0:01:39]} Nf5 {[%emt 0:05:30]} 22. Nd5 {[%emt 0:03:07]} Nfd4 {[%emt 0:06:27]} 23. fxe5 {[%emt 0:06:07]} fxe5 {[%emt 0:00:11]} 24. f4 {[%emt 0:00:05]} Nc5 {[%emt 0:04:43]} 25. Rxd4 {[%emt 0:01:14]} Na4 {[%emt 0:01:33]} 26. Qf2 {[%emt 0:00:08]} exd4 {[%emt 0:12:20]} 27. Qxd4+ {[%emt 0:00:06]} Kf7 {[%emt 0:01:07]} 28. Qa7+ {[%emt 0:00:47]} Kg8 {[%emt 0:00:17]} 29. Qxa4 {[%emt 0:00:05]} Rf7 {[%emt 0:01:39]} 30. Qc2 {[%emt 0:00:35]} Rc8 {[%emt 0:00:40]} 31. Bh3 {[%emt 0:00:06]} 1-0

[Event "NOR-chT Eliteserien 2018-19"]
[Site "Norway"]
[Date "2019.01.13"]
[Round "6"]
[White "Haug, Johannes"]
[Black "Royset, Pal"]
[Result "1-0"]
[ECO "D37"]
[WhiteElo "2402"]
[BlackElo "2165"]
[Annotator "NA"]
[PlyCount "121"]
[EventDate "2018.11.02"]
[EventType "team-tourn"]
[EventCountry "NOR"]
[SourceTitle "playchess.com"]
[Source "ChessBase"]
[SourceQuality "1"]
[TimeControl "40/5400+30:1800+30"]

1. d4 {[%emt 0:05:19]} Nf6 {[%emt 0:00:45]} 2. c4 {[%emt 0:00:07]} e6 {[%emt 0:00:47]} 3. Nf3 {[%emt 0:00:21]} d5 {[%emt 0:02:00]} 4. Nc3 {[%emt 0:02:07]} Be7 {[%emt 0:02:04]} 5. Bf4 {[%emt 0:00:08]} O-O {[%emt 0:02:30]} 6. e3 {[%emt 0:00:09]} c5 {[%emt 0:01:58]} 7. dxc5 {[%emt 0:00:20]} Bxc5 {[%emt 0:02:00]} 8. a3 {[%emt 0:00:07]} Nc6 {[%emt 0:02:52]} 9. Qc2 {[%emt 0:00:19]} Qa5 {[%emt 0:04:24]} 10. Rd1 {[%emt 0:00:07]} Re8 {[%emt 0:06:53]} 11. Nd2 {[%emt 0:05:37]} Bf8 {[%emt 0:12:27]} 12. Nb3 {[%emt 0:14:12]} Qb6 {[%emt 0:02:33]} 13. Bg5 {[%emt 0:07:12]} dxc4 {[%emt 0:11:14]} 14. Bxc4 {[%emt 0:00:10]} Ng4 {[%emt 0:07:33]} 15. Be2 {[%emt 0:05:55]} Nge5 {[%emt 0:00:56]} 16. O-O {[%emt 0:00:07]} a6 {[%emt 0:01:11]} 17. e4 {[%emt 0:04:09]} Na5 {[%emt 0:02:27]} 18. Nd2 {[%emt 0:11:05]} Qc7 {[%emt 0:05:11]} 19. b4 {[%emt 0:04:24]} Nac6 {[%emt 0:00:35]} 20. Be3 {[%emt 0:01:44]} b5 {[%emt 0:07:39]} 21. f4 {[%emt 0:02:33]} Nd7 {[%emt 0:00:32]} 22. e5 {[%emt 0:04:25]} Bb7 {[%emt 0:02:16]} 23. Nde4 {[%emt 0:00:09]} Rad8 {[%emt 0:02:21]} 24. Bd3 {[%emt 0:03:42]} h6 {[%emt 0:02:28]} 25. Qf2 {[%emt 0:02:10]} Ncb8 {[%emt 0:02:40]} 26. Rc1 {[%emt 0:04:21]} Bc6 {[%emt 0:00:26]} 27. Bb1 {[%emt 0:00:33]} Qb7 {[%emt 0:00:29]} 28. Qg3 {[%emt 0:02:53]} Kh8 {[%emt 0:03:46]} 29. Ng5 {[%emt 0:03:21]} Nb6 {[%emt 0:02:38]} 30. Nxf7+ {[%emt 0:01:56]} Qxf7 {[%emt 0:00:05]} 31. Bxb6 {[%emt 0:00:07]} Rd2 {[%emt 0:00:23]} 32. Ne4 {[%emt 0:01:15]} Rb2 {[%emt 0:00:38]} 33. Rxc6 {[%emt 0:04:40]} Nxc6 {[%emt 0:00:50]} 34. Qc3 {[%emt 0:02:15]} Rxb1 {[%emt 0:00:47]} 35. Rxb1 {[%emt 0:00:25]} Qb7 {[%emt 0:01:47]} 36. Bc5 {[%emt 0:02:02]} Bxc5+ {[%emt 0:01:30]} 37. Qxc5 {[%emt 0:00:40]} Rb8 {[%emt 0:02:40]} 38. Rd1 {[%emt 0:04:07]} Nd8 {[%emt 0:00:38]} 39. Qf8+ {[%emt 0:03:22]} Kh7 {[%emt 0:00:05]} 40. Nc5 {[%emt 0:00:47]} Nf7 {[%emt 0:03:37]} 41. Rd7 {[%emt 0:05:01]} Qxg2+ {[%emt 0:11:00]} 42. Kxg2 {[%emt 0:00:13]} Rxf8 {[%emt 0:00:02]} 43. Nxe6 {[%emt 0:01:03]} Re8 {[%emt 0:00:02]} 44. Nc7 {[%emt 0:01:19]} Nxe5 {[%emt 0:00:10]} 45. Rxg7+ {[%emt 0:01:13]} Kxg7 {[%emt 0:01:00]} 46. Nxe8+ {[%emt 0:00:09]} Kf8 {[%emt 0:06:44]} 47. fxe5 {[%emt 0:00:05]} Kxe8 {[%emt 0:00:04]} 48. Kf3 {[%emt 0:00:37]} Kf7 {[%emt 0:00:24]} 49. Ke4 {[%emt 0:00:32]} Ke6 {[%emt 0:00:26]} 50. h3 {[%emt 0:00:08]} Ke7 {[%emt 0:02:07]} 51. Kf5 {[%emt 0:00:22]} Kf7 {[%emt 0:00:19]} 52. e6+ {[%emt 0:01:13]} Ke7 {[%emt 0:03:38]} 53. Ke5 {[%emt 0:00:18]} h5 {[%emt 0:02:40]} 54. h4 {[%emt 0:00:05]} Ke8 {[%emt 0:00:31]} 55. Kf6 {[%emt 0:00:04]} Kf8 {[%emt 0:00:12]} 56. e7+ {[%emt 0:01:10]} Ke8 {[%emt 0:00:05]} 57. Ke6 {[%emt 0:00:21]} a5 {[%emt 0:00:04]} 58. bxa5 {[%emt 0:00:05]} b4 {[%emt 0:00:02]} 59. a6 {[%emt 0:00:12]} bxa3 {[%emt 0:00:06]} 60. a7 {[%emt 0:00:06]} a2 {[%emt 0:00:01]} 61. a8=Q# {[%emt 0:00:08]} 1-0